[Event "EYCC Open U8 2018"]
[Site "Riga"]
[Date "2018.08.27"]
[Round "7"]
[White "Motoyama, Wesley Winsen"]
[Black "Uskov, Artem"]
[Result "1-0"]
[ECO "B84"]
[WhiteElo "1375"]
[BlackElo "1320"]
[Annotator "NA"]
[PlyCount "132"]
[EventDate "2018.08.20"]
[EventType "swiss"]
[EventCountry "LAT"]
[SourceTitle "playchess.com"]
[Source "ChessBase"]
[SourceQuality "1"]
[TimeControl "40/5400+30:1800+30"]

1. e4 {[%emt 0:00:00]} c5 {[%emt 0:00:00]} 2. Nf3 {[%emt 0:01:05]} d6 {[%emt 0:01:05]} 3. d4 {[%emt 0:00:57]} cxd4 {[%emt 0:00:57]} 4. Nxd4 {[%emt 0:00:14]} Nf6 {[%emt 0:00:21]} 5. Nc3 {[%emt 0:00:37]} a6 {[%emt 0:01:12]} 6. Be2 {[%emt 0:02:16]} e6 {[%emt 0:01:35]} 7. O-O {[%emt 0:02:05]} Be7 {[%emt 0:02:04]} 8. Be3 {[%emt 0:02:16]} O-O {[%emt 0:02:17]} 9. f4 {[%emt 0:02:14]} Nc6 {[%emt 0:02:00]} 10. Bf3 {[%emt 0:03:25]} Bd7 {[%emt 0:04:21]} 11. Qd2 {[%emt 0:04:14]} Rc8 {[%emt 0:03:01]} 12. g4 {[%emt 0:04:37]} Nxd4 {[%emt 0:05:55]} 13. Bxd4 {[%emt 0:00:38]} e5 {[%emt 0:00:31]} 14. fxe5 {[%emt 0:04:58]} dxe5 {[%emt 0:02:38]} 15. Bxe5 {[%emt 0:04:04]} Nxg4 {[%emt 0:00:40]} 16. Bxg4 {[%emt 0:05:48]} Bxg4 {[%emt 0:00:35]} 17. Qg2 {[%emt 0:00:46]} Qb6+ {[%emt 0:07:02]} 18. Kh1 {[%emt 0:06:16]} Qe6 {[%emt 0:00:38]} 19. Bd4 {[%emt 0:13:48]} Rc4 {[%emt 0:29:14]} 20. Qg1 {[%emt 0:19:56]} f6 {[%emt 0:03:08]} 21. Rf4 {[%emt 0:04:34]} Bh5 {[%emt 0:00:17]} 22. b3 {[%emt 0:01:52]} Rc6 {[%emt 0:00:41]} 23. Raf1 {[%emt 0:02:52]} Bg6 {[%emt 0:01:28]} 24. Qg2 {[%emt 0:04:22]} Rd8 {[%emt 0:00:23]} 25. Nd5 {[%emt 0:01:15]} Bd6 {[%emt 0:02:07]} 26. Nxf6+ {[%emt 0:02:41]} gxf6 {[%emt 0:02:22]} 27. Rxf6 {[%emt 0:02:27]} Qe8 {[%emt 0:01:41]} 28. e5 {[%emt 0:01:27]} Be7 {[%emt 0:00:54]} 29. R6f4 {[%emt 0:00:38]} Bc5 {[%emt 0:03:20]} 30. Bxc5 {[%emt 0:00:42]} Rxc5 {[%emt 0:00:29]} 31. Qf2 {[%emt 0:00:21]} Rxc2 {[%emt 0:01:03]} 32. Qf3 {[%emt 0:00:52]} Qc6 {[%emt 0:00:11]} 33. Kg1 {[%emt 0:00:36]} Qxf3 {[%emt 0:00:08]} 34. R4xf3 {[%emt 0:00:07]} Re2 {[%emt 0:00:53]} 35. Rc3 {[%emt 0:00:27]} Rxe5 {[%emt 0:00:28]} 36. Rg3 {[%emt 0:00:41]} Rd3 {[%emt 0:00:28]} 37. Rg4 {[%emt 0:00:24]} Re4 {[%emt 0:00:27]} 38. Rg5 {[%emt 0:00:18]} Rdd4 {[%emt 0:00:07]} 39. h3 {[%emt 0:00:23]} Re3 {[%emt 0:00:34]} 40. Kh2 {[%emt 0:00:00]} Rd2+ {[%emt 0:00:00]} 41. Kg1 {[%emt 0:01:53]} Rxh3 {[%emt 0:00:13]} 42. Rc1 {[%emt 0:03:36]} Rxa2 {[%emt 0:00:32]} 43. Rd5 {[%emt 0:01:05]} Rh1+ {[%emt 0:00:37]} 44. Kxh1 {[%emt 0:00:23]} Be4+ {[%emt 0:00:03]} 45. Kg1 {[%emt 0:00:17]} Bxd5 {[%emt 0:00:07]} 46. Rc8+ {[%emt 0:01:36]} Kg7 {[%emt 0:00:16]} 47. Rc7+ {[%emt 0:01:15]} Kg6 {[%emt 0:00:15]} 48. Rd7 {[%emt 0:00:47]} Bxb3 {[%emt 0:00:19]} 49. Rxb7 {[%emt 0:00:14]} Bd5 {[%emt 0:00:49]} 50. Rb6+ Kg5 51. Rd6 {[%emt 0:01:19]} Rd2 {[%emt 0:00:41]} 52. Rd7 {[%emt 0:01:12]} h5 {[%emt 0:00:09]} 53. Rd6 {[%emt 0:00:28]} h4 {[%emt 0:00:23]} 54. Rd8 {[%emt 0:00:36]} h3 {[%emt 0:00:08]} 55. Rh8 {[%emt 0:00:43]} h2+ {[%emt 0:00:19]} 56. Rxh2 {[%emt 0:00:13]} Rxh2 {[%emt 0:00:12]} 57. Kxh2 a5 {[%emt 0:00:13]} 58. Kg1 {[%emt 0:00:44]} a4 {[%emt 0:00:53]} 59. Kf1 {[%emt 0:00:06]} a3 {[%emt 0:00:03]} 60. Ke2 {[%emt 0:00:07]} a2 {[%emt 0:00:07]} 61. Kd3 {[%emt 0:00:13]} a1=Q {[%emt 0:00:06]} 62. Kc2 {[%emt 0:00:12]} Qa3 {[%emt 0:00:12]} 63. Kb1 {[%emt 0:00:16]} Qa2+ {[%emt 0:00:40]} 64. Kc1 {[%emt 0:00:06]} Bc4 {[%emt 0:00:06]} 65. Kd1 {[%emt 0:00:17]} Bd3 {[%emt 0:00:05]} 66. Ke1 {[%emt 0:00:17]} Qe2# {[%emt 0:00:06]} 1-0

[Event "EYCC Open U8 2018"]
[Site "Riga"]
[Date "2018.08.27"]
[Round "7"]
[White "Yasmo, Daniil"]
[Black "Hajdu, Marton Abris"]
[Result "0-1"]
[ECO "D02"]
[WhiteElo "1261"]
[BlackElo "1694"]
[Annotator "NA"]
[PlyCount "72"]
[EventDate "2018.08.20"]
[EventType "swiss"]
[EventCountry "LAT"]
[SourceTitle "playchess.com"]
[Source "ChessBase"]
[SourceQuality "1"]
[TimeControl "40/5400+30:1800+30"]

1. d4 {[%emt 0:00:00]} Nf6 {[%emt 0:00:04]} 2. Bf4 {[%emt 0:00:07]} d5 {[%emt 0:00:55]} 3. Nf3 {[%emt 0:00:32]} g6 {[%emt 0:03:07]} 4. e3 {[%emt 0:01:29]} Bg7 {[%emt 0:00:48]} 5. Bd3 {[%emt 0:03:21]} Nbd7 {[%emt 0:01:00]} 6. h3 {[%emt 0:01:58]} b6 {[%emt 0:01:44]} 7. Nbd2 {[%emt 0:03:43]} Bb7 {[%emt 0:01:09]} 8. c3 {[%emt 0:03:02]} O-O {[%emt 0:02:01]} 9. O-O {[%emt 0:10:26]} Ne4 {[%emt 0:02:43]} 10. Bxe4 {[%emt 0:13:30]} dxe4 {[%emt 0:00:27]} 11. Ng5 {[%emt 0:09:58]} Ba6 {[%emt 0:14:18]} 12. Re1 {[%emt 0:00:49]} e5 {[%emt 0:18:26]} 13. dxe5 {[%emt 0:02:06]} Nc5 {[%emt 0:02:02]} 14. e6 {[%emt 0:38:46]} f5 {[%emt 0:01:47]} 15. g4 {[%emt 0:05:37]} Qe8 {[%emt 0:29:48]} 16. Bxc7 {[%emt 0:00:50]} h6 {[%emt 0:01:33]} 17. Bd6 {[%emt 0:00:22]} hxg5 {[%emt 0:00:37]} 18. Bxf8 {[%emt 0:00:04]} Bxf8 {[%emt 0:00:52]} 19. gxf5 {[%emt 0:00:16]} gxf5 {[%emt 0:01:30]} 20. Qc2 {[%emt 0:00:30]} Nd3 {[%emt 0:01:53]} 21. Qb3 {[%emt 0:00:59]} Be7 {[%emt 0:01:05]} 22. Red1 {[%emt 0:00:30]} Qh5 {[%emt 0:00:37]} 23. Rf1 {[%emt 0:01:12]} Qxh3 {[%emt 0:00:59]} 24. Qa4 {[%emt 0:00:46]} Bd6 {[%emt 0:01:43]} 25. f4 {[%emt 0:00:23]} exf3 {[%emt 0:00:49]} 26. Nxf3 {[%emt 0:00:32]} Qg3+ {[%emt 0:00:47]} 27. Kh1 {[%emt 0:00:10]} Bb7 {[%emt 0:00:37]} 28. Qc2 {[%emt 0:01:17]} Bxf3+ {[%emt 0:00:18]} 29. Rxf3 {[%emt 0:00:03]} Qxf3+ {[%emt 0:00:07]} 30. Kg1 {[%emt 0:00:10]} Qxe3+ {[%emt 0:00:21]} 31. Kf1 {[%emt 0:00:29]} Qf3+ {[%emt 0:00:39]} 32. Kg1 {[%emt 0:00:14]} Bc5+ {[%emt 0:00:18]} 33. Kh2 {[%emt 0:00:07]} Nf2 {[%emt 0:01:21]} 34. Qxf5 {[%emt 0:01:35]} Qxf5 {[%emt 0:00:29]} 35. e7 {[%emt 0:00:59]} Qh3+ {[%emt 0:00:29]} 36. Kg1 {[%emt 0:00:04]} Ng4# {[%emt 0:00:13]} 0-1

[Event "EYCC Open U8 2018"]
[Site "Riga"]
[Date "2018.08.27"]
[Round "7"]
[White "Cruceru Uceanu, Tudor Mihai"]
[Black "Zverev, Lev"]
[Result "0-1"]
[ECO "B07"]
[WhiteElo "1257"]
[BlackElo "1682"]
[Annotator "NA"]
[PlyCount "92"]
[EventDate "2018.08.20"]
[EventType "swiss"]
[EventCountry "LAT"]
[SourceTitle "playchess.com"]
[Source "ChessBase"]
[SourceQuality "1"]
[TimeControl "40/5400+30:1800+30"]

1. e4 {[%emt 0:00:00]} d6 {[%emt 0:00:00]} 2. d4 {[%emt 0:00:00]} Nf6 {[%emt 0:00:00]} 3. Nc3 {[%emt 0:00:00]} Nbd7 {[%emt 0:00:00]} 4. Nf3 {[%emt 0:00:07]} e5 {[%emt 0:00:03]} 5. dxe5 {[%emt 0:00:16]} dxe5 {[%emt 0:00:07]} 6. Bg5 {[%emt 0:00:09]} Be7 {[%emt 0:00:13]} 7. Bc4 {[%emt 0:00:18]} O-O {[%emt 0:00:35]} 8. O-O {[%emt 0:04:27]} c6 {[%emt 0:00:17]} 9. h3 {[%emt 0:00:16]} b5 {[%emt 0:00:08]} 10. Bb3 {[%emt 0:00:43]} b4 {[%emt 0:00:08]} 11. Bxf6 {[%emt 0:00:08]} Bxf6 {[%emt 0:00:45]} 12. Ne2 {[%emt 0:00:13]} Qc7 {[%emt 0:00:28]} 13. Qd2 {[%emt 0:00:38]} a5 {[%emt 0:00:35]} 14. Rad1 {[%emt 0:07:54]} Nb6 {[%emt 0:01:14]} 15. c3 {[%emt 0:00:19]} Ba6 {[%emt 0:01:32]} 16. Rfe1 {[%emt 0:00:59]} a4 {[%emt 0:02:15]} 17. Bc2 {[%emt 0:00:08]} Rad8 {[%emt 0:01:45]} 18. Qc1 {[%emt 0:00:11]} c5 {[%emt 0:02:06]} 19. cxb4 {[%emt 0:08:17]} cxb4 {[%emt 0:00:08]} 20. Ng3 {[%emt 0:00:24]} Rc8 {[%emt 0:00:36]} 21. Bb1 {[%emt 0:01:12]} Qb7 {[%emt 0:00:38]} 22. Qe3 {[%emt 0:03:49]} Rfd8 {[%emt 0:07:52]} 23. Rxd8+ {[%emt 0:02:32]} Rxd8 {[%emt 0:00:10]} 24. Qc5 {[%emt 0:00:07]} Nc4 {[%emt 0:00:43]} 25. b3 {[%emt 0:01:35]} Be7 {[%emt 0:00:19]} 26. Qxe7 {[%emt 0:01:53]} Qxe7 {[%emt 0:00:07]} 27. bxc4 {[%emt 0:00:09]} Bxc4 {[%emt 0:00:05]} 28. Nf5 {[%emt 0:00:12]} Qe6 {[%emt 0:02:09]} 29. Ng5 {[%emt 0:00:10]} Qb6 {[%emt 0:01:37]} 30. Rc1 {[%emt 0:00:53]} Ba6 {[%emt 0:01:04]} 31. Nf3 {[%emt 0:01:32]} f6 {[%emt 0:00:25]} 32. Ne7+ {[%emt 0:01:25]} Kf8 {[%emt 0:00:47]} 33. Nd5 {[%emt 0:00:06]} Qa5 {[%emt 0:00:10]} 34. Nc7 {[%emt 0:01:22]} Rc8 {[%emt 0:00:22]} 35. Ne6+ {[%emt 0:00:38]} Kf7 {[%emt 0:00:15]} 36. Rxc8 {[%emt 0:08:16]} Bxc8 {[%emt 0:00:10]} 37. Ned4 {[%emt 0:00:50]} exd4 {[%emt 0:00:08]} 38. Nxd4 {[%emt 0:00:13]} Qd8 {[%emt 0:00:09]} 39. Bc2 {[%emt 0:00:17]} Qxd4 {[%emt 0:00:19]} 40. Bxa4 {[%emt 0:00:00]} Qa1+ {[%emt 0:00:00]} 41. Kh2 {[%emt 0:00:15]} Qxa2 {[%emt 0:00:39]} 42. Bd1 {[%emt 0:00:11]} b3 {[%emt 0:00:08]} 43. Bxb3+ {[%emt 0:00:04]} Qxb3 {[%emt 0:00:05]} 44. f3 {[%emt 0:00:10]} Qe3 {[%emt 0:00:09]} 45. Kg3 {[%emt 0:00:06]} Ba6 {[%emt 0:00:07]} 46. Kg4 {[%emt 0:00:19]} Qg5# {[%emt 0:00:08]} 0-1

[Event "EYCC Open U8 2018"]
[Site "Riga"]
[Date "2018.08.28"]
[Round "8"]
[White "Hajdu, Marton Abris"]
[Black "Zverev, Lev"]
[Result "1-0"]
[ECO "D35"]
[WhiteElo "1694"]
[BlackElo "1682"]
[Annotator "NA RC"]
[PlyCount "117"]
[EventDate "2018.08.20"]
[EventType "swiss"]
[EventCountry "LAT"]
[SourceTitle "playchess.com"]
[Source "ChessBase"]
[SourceQuality "1"]
[TimeControl "40/5400+30:1800+30"]

1. d4 {[%emt 0:00:00]} d5 {[%emt 0:00:00]} 2. c4 {[%emt 0:00:15]} e6 {[%emt 0:00:00]} 3. cxd5 {[%emt 0:00:19]} exd5 {[%emt 0:00:00]} 4. Nc3 {[%emt 0:00:29]} Nf6 {[%emt 0:00:15]} 5. Bg5 {[%emt 0:00:29]} Be7 {[%emt 0:00:07]} 6. Qc2 {[%emt 0:00:46]} O-O {[%emt 0:00:17]} 7. e3 {[%emt 0:00:34]} Nbd7 {[%emt 0:00:31]} 8. Bd3 {[%emt 0:00:46]} h6 {[%emt 0:00:15]} 9. Bh4 {[%emt 0:00:51]} b6 {[%emt 0:00:37]} 10. Nf3 {[%emt 0:00:51]} Bb7 {[%emt 0:00:20]} 11. O-O {[%emt 0:01:06]} c5 {[%emt 0:00:11]} 12. Rfe1 {[%emt 0:02:23]} Re8 {[%emt 0:07:16]} 13. dxc5 {[%emt 0:05:50]} bxc5 {[%emt 0:00:07]} 14. Bb5 {[%emt 0:03:09]} Qc7 {[%emt 0:04:00]} 15. Rad1 {[%emt 0:01:50]} Bc6 {[%emt 0:00:33]} 16. Bxc6 {[%emt 0:01:17]} Qxc6 {[%emt 0:00:06]} 17. Bg3 {[%emt 0:09:25]} Bd6 {[%emt 0:02:02]} 18. Bxd6 {[%emt 0:03:14]} Qxd6 {[%emt 0:00:06]} 19. Rd2 {[%emt 0:15:38]} Qe6 {[%emt 0:01:50]} 20. Red1 {[%emt 0:04:07]} Nb6 {[%emt 0:00:08]} 21. Nb5 {[%emt 0:03:20]} Rec8 {[%emt 0:00:20]} 22. Nc3 Rab8 {[%emt 0:04:50]} 23. b3 {[%emt 0:12:32]} Rb7 {[%emt 0:03:25]} 24. Ne2 {[%emt 0:13:16]} g5 {[%emt 0:01:19]} 25. Ng3 {[%emt 0:05:57]} Rbc7 {[%emt 0:03:02]} 26. Qb1 {[%emt 0:08:01]} Kf8 {[%emt 0:04:48]} 27. Rc1 Ne4 {[%emt 0:00:49]} 28. Rdc2 {[%emt 0:01:33]} Nxg3 {[%emt 0:00:08]} 29. hxg3 {[%emt 0:00:06]} Qd6 {[%emt 0:00:24]} 30. Qa1 {[%emt 0:00:41]} f6 {[%emt 0:00:26]} 31. b4 {[%emt 0:01:09]} c4 {[%emt 0:00:23]} 32. Nd4 {[%emt 0:00:21]} Qd7 {[%emt 0:00:48]} 33. Nf3 {[%emt 0:02:09]} Kf7 {[%emt 0:00:20]} 34. Nd4 Na4 {[%emt 0:00:49]} 35. a3 {[%emt 0:00:33]} a5 {[%emt 0:03:47]} 36. Ra2 {[%emt 0:02:18]} f5 {[%emt 0:01:41]} 37. Qb1 {[%emt 0:00:19]} Kf6 {[%emt 0:00:14]} 38. g4 {[%emt 0:01:39]} fxg4 {[%emt 0:00:34]} 39. f4 {[%emt 0:00:00]} Rf8 {[%emt 0:00:00]} 40. Rf2 {[%emt 0:00:00]} Kg7 {[%emt 0:00:00]} 41. fxg5 {[%emt 0:02:56]} Rxf2 {[%emt 0:02:08]} 42. gxh6+ {[%emt 0:00:20]} Kh8 {[%emt 0:01:03]} 43. Kxf2 {[%emt 0:01:16]} Qf7+ {[%emt 0:00:32]} 44. Kg1 {[%emt 0:00:22]} Qe7 {[%emt 0:04:19]} 45. Nf5 {[%emt 0:06:02]} Qg5 {[%emt 0:01:15]} 46. bxa5 {[%emt 0:02:20]} Rf7 {[%emt 0:00:32]} 47. Rf1 {[%emt 0:03:12]} Nc3 {[%emt 0:02:23]} 48. Qb2 {[%emt 0:09:28]} d4 {[%emt 0:00:18]} 49. exd4 {[%emt 0:02:40]} Nd5 {[%emt 0:00:06]} 50. Qb8+ {[%emt 0:01:45]} Kh7 {[%emt 0:00:13]} 51. Qe5 {[%emt 0:00:55]} Ne7 {[%emt 0:00:16]} 52. Nxe7 {[%emt 0:00:42]} Rxf1+ {[%emt 0:00:06]} 53. Kxf1 {[%emt 0:00:14]} Qc1+ {[%emt 0:00:04]} 54. Kf2 {[%emt 0:03:59]} Qd2+ {[%emt 0:00:17]} 55. Kg3 {[%emt 0:00:39]} Qd3+ {[%emt 0:00:15]} 56. Kh2 {[%emt 0:00:11]} Kxh6 {[%emt 0:00:32]} 57. Nf5+ {[%emt 0:00:33]} Kg6 {[%emt 0:00:14]} 58. Ne7+ {[%emt 0:00:25]} Kh6 {[%emt 0:00:10]} 59. Qf5 {[%emt 0:01:20]} 1-0

[Event "EYCC Open U8 2018"]
[Site "Riga"]
[Date "2018.08.28"]
[Round "8"]
[White "Gordeev, Denis"]
[Black "Golovchenko, Bogdan"]
[Result "1-0"]
[ECO "D00"]
[WhiteElo "1333"]
[BlackElo "1560"]
[Annotator "NA RC"]
[PlyCount "137"]
[EventDate "2018.08.20"]
[EventType "swiss"]
[EventCountry "LAT"]
[SourceTitle "playchess.com"]
[Source "ChessBase"]
[SourceQuality "1"]
[TimeControl "40/5400+30:1800+30"]

1. d4 {[%emt 0:00:00]} d5 {[%emt 0:00:00]} 2. Nc3 {[%emt 0:00:00]} Nf6 {[%emt 0:00:00]} 3. Bf4 {[%emt 0:00:15]} e6 {[%emt 0:00:17]} 4. e3 {[%emt 0:00:18]} a6 {[%emt 0:00:12]} 5. Nf3 {[%emt 0:00:40]} c5 {[%emt 0:00:14]} 6. a3 {[%emt 0:00:52]} Nc6 {[%emt 0:04:01]} 7. h3 {[%emt 0:00:33]} Be7 {[%emt 0:13:26]} 8. dxc5 {[%emt 0:00:48]} Bxc5 {[%emt 0:00:21]} 9. Bd3 {[%emt 0:00:29]} O-O {[%emt 0:01:01]} 10. O-O {[%emt 0:00:30]} Re8 {[%emt 0:01:29]} 11. e4 {[%emt 0:08:54]} d4 {[%emt 0:01:00]} 12. Ne2 {[%emt 0:06:26]} e5 {[%emt 0:00:30]} 13. Bg5 {[%emt 0:00:42]} b5 {[%emt 0:06:15]} 14. c3 {[%emt 0:01:29]} dxc3 {[%emt 0:08:14]} 15. Nxc3 {[%emt 0:01:47]} Be7 {[%emt 0:01:00]} 16. Rc1 {[%emt 0:12:55]} Bb7 {[%emt 0:02:09]} 17. Bb1 {[%emt 0:07:12]} Qxd1 {[%emt 0:10:03]} 18. Rfxd1 {[%emt 0:01:13]} Red8 {[%emt 0:05:50]} 19. Kf1 {[%emt 0:09:09]} a5 {[%emt 0:03:35]} 20. Ba2 {[%emt 0:18:41]} b4 {[%emt 0:00:46]} 21. Nd5 {[%emt 0:01:38]} Nxd5 {[%emt 0:04:48]} 22. Bxd5 {[%emt 0:01:09]} Bxg5 {[%emt 0:00:43]} 23. Nxg5 {[%emt 0:00:13]} Rac8 {[%emt 0:03:04]} 24. Nxf7 {[%emt 0:04:01]} Rxd5 {[%emt 0:00:27]} 25. exd5 {[%emt 0:00:16]} Kxf7 {[%emt 0:00:06]} 26. dxc6 {[%emt 0:00:32]} Bxc6 {[%emt 0:00:06]} 27. Ke1 {[%emt 0:01:15]} bxa3 {[%emt 0:01:30]} 28. bxa3 {[%emt 0:00:48]} Ke6 {[%emt 0:00:09]} 29. Rc5 {[%emt 0:00:21]} a4 {[%emt 0:00:38]} 30. Rdc1 {[%emt 0:00:36]} Kd6 {[%emt 0:00:06]} 31. Kd2 {[%emt 0:00:35]} Rc7 {[%emt 0:01:05]} 32. Ke3 {[%emt 0:01:08]} h6 {[%emt 0:01:08]} 33. g3 {[%emt 0:01:26]} g5 {[%emt 0:00:11]} 34. R5c3 {[%emt 0:01:50]} h5 {[%emt 0:01:17]} 35. Rc4 {[%emt 0:00:49]} Kd7 {[%emt 0:00:59]} 36. Rc5 {[%emt 0:00:37]} Kd6 {[%emt 0:00:47]} 37. Kd2 {[%emt 0:00:21]} Rc8 {[%emt 0:00:21]} 38. R5c3 {[%emt 0:00:31]} Rc7 {[%emt 0:00:31]} 39. Rd3+ {[%emt 0:00:13]} Ke7 {[%emt 0:01:06]} 40. Rc5 {[%emt 0:00:00]} Ke6 {[%emt 0:00:00]} 41. Rd8 {[%emt 0:00:28]} Rd7+ {[%emt 0:01:31]} 42. Rxd7 {[%emt 0:00:08]} Bxd7 {[%emt 0:00:01]} 43. Rc3 {[%emt 0:01:21]} g4 {[%emt 0:00:49]} 44. hxg4 {[%emt 0:01:13]} hxg4 {[%emt 0:00:03]} 45. Rc4 {[%emt 0:00:11]} Kd6 {[%emt 0:00:19]} 46. Kc3 {[%emt 0:00:46]} Kd5 {[%emt 0:00:43]} 47. Rc7 {[%emt 0:00:27]} Kd6 {[%emt 0:00:08]} 48. Ra7 {[%emt 0:00:51]} Bc6 {[%emt 0:02:37]} 49. Ra5 {[%emt 0:02:11]} Bd7 {[%emt 0:01:20]} 50. Kb4 {[%emt 0:01:09]} e4 {[%emt 0:00:08]} 51. Rxa4 {[%emt 0:03:28]} Bxa4 {[%emt 0:00:45]} 52. Kxa4 {[%emt 0:00:06]} Kc5 {[%emt 0:00:28]} 53. Kb3 {[%emt 0:00:12]} Kd4 {[%emt 0:00:08]} 54. Kc2 {[%emt 0:00:50]} e3 {[%emt 0:00:13]} 55. fxe3+ {[%emt 0:01:06]} Kxe3 {[%emt 0:00:05]} 56. a4 {[%emt 0:00:07]} Kf3 {[%emt 0:00:03]} 57. a5 {[%emt 0:00:06]} Kxg3 {[%emt 0:00:08]} 58. a6 {[%emt 0:00:06]} Kf2 {[%emt 0:00:25]} 59. a7 {[%emt 0:00:12]} g3 {[%emt 0:00:04]} 60. a8=Q {[%emt 0:00:07]} g2 {[%emt 0:00:06]} 61. Qf8+ {[%emt 0:00:54]} Kg3 {[%emt 0:00:07]} 62. Qg7+ {[%emt 0:00:09]} Kh2 {[%emt 0:00:06]} 63. Qh6+ {[%emt 0:00:09]} Kg3 {[%emt 0:00:07]} 64. Qg5+ {[%emt 0:00:07]} Kf2 {[%emt 0:00:07]} 65. Qf4+ {[%emt 0:00:41]} Kg1 {[%emt 0:00:15]} 66. Kd2 {[%emt 0:00:32]} Kh1 {[%emt 0:00:08]} 67. Qh4+ {[%emt 0:00:37]} Kg1 {[%emt 0:00:05]} 68. Ke3 {[%emt 0:00:17]} Kf1 {[%emt 0:00:04]} 69. Qf2# {[%emt 0:00:10]} 1-0

[Event "EYCC Open U8 2018"]
[Site "Riga"]
[Date "2018.08.28"]
[Round "8"]
[White "Uskov, Artem"]
[Black "Azadaliyev, Jahandar"]
[Result "0-1"]
[ECO "B13"]
[WhiteElo "1320"]
[BlackElo "1732"]
[Annotator "NA RC"]
[PlyCount "122"]
[EventDate "2018.08.20"]
[EventType "swiss"]
[EventCountry "LAT"]
[SourceTitle "playchess.com"]
[Source "ChessBase"]
[SourceQuality "1"]
[TimeControl "40/5400+30:1800+30"]

1. e4 {[%emt 0:00:00]} c6 {[%emt 0:00:00]} 2. d4 {[%emt 0:00:00]} d5 {[%emt 0:00:00]} 3. exd5 {[%emt 0:00:00]} cxd5 {[%emt 0:00:00]} 4. Bd3 {[%emt 0:00:00]} Nc6 {[%emt 0:00:00]} 5. c3 {[%emt 0:00:59]} Nf6 {[%emt 0:00:47]} 6. Bf4 {[%emt 0:02:10]} Bg4 {[%emt 0:00:27]} 7. Qb3 {[%emt 0:00:54]} Qc8 {[%emt 0:00:33]} 8. Nd2 {[%emt 0:01:26]} e6 {[%emt 0:00:37]} 9. Ngf3 {[%emt 0:01:34]} Be7 {[%emt 0:00:13]} 10. O-O {[%emt 0:01:01]} O-O {[%emt 0:06:02]} 11. Ne5 {[%emt 0:01:17]} Bh5 {[%emt 0:03:20]} 12. Rfe1 {[%emt 0:00:39]} Nxe5 {[%emt 0:01:49]} 13. Bxe5 {[%emt 0:00:19]} Qd7 {[%emt 0:10:39]} 14. a4 {[%emt 0:03:28]} Ng4 {[%emt 0:03:52]} 15. Qc2 {[%emt 0:01:22]} Bg6 {[%emt 0:00:18]} 16. Nf3 {[%emt 0:01:22]} a6 {[%emt 0:05:31]} 17. h3 Nh6 {[%emt 0:09:12]} 18. Bh2 {[%emt 0:09:25]} Bd6 {[%emt 0:04:57]} 19. Bxd6 {[%emt 0:03:40]} Qxd6 {[%emt 0:03:59]} 20. Bxg6 {[%emt 0:00:20]} hxg6 {[%emt 0:00:25]} 21. Re2 {[%emt 0:00:30]} Nf5 {[%emt 0:00:29]} 22. Ne5 {[%emt 0:00:16]} Rac8 {[%emt 0:00:36]} 23. Qb3 {[%emt 0:00:40]} Rc7 {[%emt 0:00:36]} 24. Ree1 {[%emt 0:01:47]} g5 {[%emt 0:01:31]} 25. Nd3 {[%emt 0:01:04]} a5 {[%emt 0:04:12]} 26. Red1 {[%emt 0:03:12]} g6 {[%emt 0:01:44]} 27. Ne1 {[%emt 0:01:54]} Nh6 {[%emt 0:03:00]} 28. Qc2 {[%emt 0:01:45]} g4 {[%emt 0:00:49]} 29. Qd3 {[%emt 0:02:55]} Kg7 {[%emt 0:00:59]} 30. Qg3 {[%emt 0:01:23]} Qxg3 {[%emt 0:00:33]} 31. fxg3 {[%emt 0:00:04]} g5 {[%emt 0:01:20]} 32. Nc2 {[%emt 0:01:09]} gxh3 {[%emt 0:00:29]} 33. gxh3 {[%emt 0:00:17]} Nf5 {[%emt 0:00:08]} 34. Rd3 {[%emt 0:00:36]} Nd6 {[%emt 0:00:13]} 35. Na3 {[%emt 0:00:28]} b6 {[%emt 0:00:20]} 36. Rc1 {[%emt 0:00:31]} f6 {[%emt 0:00:58]} 37. Re3 {[%emt 0:00:15]} Kf7 {[%emt 0:00:11]} 38. Rce1 {[%emt 0:01:48]} Re8 {[%emt 0:00:11]} 39. b3 {[%emt 0:00:55]} Rc6 {[%emt 0:05:29]} 40. Rd3 {[%emt 0:00:00]} Rec8 {[%emt 0:00:00]} 41. Ree3 {[%emt 0:05:52]} Rb8 {[%emt 0:03:57]} 42. b4 {[%emt 0:05:13]} axb4 {[%emt 0:00:28]} 43. cxb4 {[%emt 0:00:06]} Ra8 {[%emt 0:00:43]} 44. Rc3 {[%emt 0:03:52]} Rxc3 {[%emt 0:00:45]} 45. Rxc3 {[%emt 0:00:06]} Rxa4 {[%emt 0:00:17]} 46. Nc2 {[%emt 0:00:17]} Nc4 {[%emt 0:00:05]} 47. Kg2 {[%emt 0:00:20]} e5 {[%emt 0:00:47]} 48. dxe5 {[%emt 0:00:29]} fxe5 {[%emt 0:00:02]} 49. Kf3 Ra2 {[%emt 0:00:13]} 50. h4 {[%emt 0:04:22]} g4+ {[%emt 0:00:22]} 51. Kxg4 {[%emt 0:00:26]} Rxc2 {[%emt 0:00:05]} 52. Rxc2 {[%emt 0:00:42]} Ne3+ {[%emt 0:00:06]} 53. Kg5 {[%emt 0:00:18]} Nxc2 {[%emt 0:00:01]} 54. Kf5 {[%emt 0:00:09]} e4 {[%emt 0:00:04]} 55. Kf4 {[%emt 0:00:03]} e3 {[%emt 0:00:04]} 56. Kf3 {[%emt 0:00:04]} d4 {[%emt 0:00:03]} 57. Ke2 {[%emt 0:00:07]} Nxb4 {[%emt 0:00:04]} 58. g4 {[%emt 0:00:07]} Nd5 {[%emt 0:00:06]} 59. h5 {[%emt 0:00:13]} Nf4+ {[%emt 0:00:05]} 60. Kf3 {[%emt 0:00:04]} e2 {[%emt 0:00:05]} 61. Kf2 {[%emt 0:00:35]} d3 {[%emt 0:00:47]} 0-1